[Event "Fagernes Open 2021"]
[Site "Fagernes"]
[Date "2021.10.15"]
[Round "7.6"]
[White "Stromhaug, Kristoffer Wang"]
[Black "Lye, Sigurd"]
[Result "1/2-1/2"]
[ECO "B33"]
[WhiteElo "1718"]
[BlackElo "1821"]
[Annotator "NA"]
[PlyCount "74"]
[EventDate "2021.10.10"]
[EventCountry "NOR"]
[SourceTitle "playchess.com"]
[Source "ChessBase"]
[SourceQuality "1"]
[TimeControl "40/5400+30:1800+30"]

1. e4 {[%emt 0:00:00]} c5 {[%emt 0:00:00]} 2. Nf3 {[%emt 0:00:00]} Nc6 {[%emt 0:00:00]} 3. d4 {[%emt 0:00:00]} cxd4 {[%emt 0:00:00]} 4. Nxd4 {[%emt 0:00:00]} Nf6 {[%emt 0:00:00]} 5. Nc3 {[%emt 0:00:00]} e5 {[%emt 0:00:00]} 6. Ndb5 {[%emt 0:00:00]} d6 {[%emt 0:00:00]} 7. Bg5 {[%emt 0:00:00]} a6 {[%emt 0:00:00]} 8. Na3 {[%emt 0:00:00]} b5 {[%emt 0:00:00]} 9. Nd5 {[%emt 0:00:00]} Be7 {[%emt 0:00:00]} 10. Bxf6 {[%emt 0:00:00]} Bxf6 {[%emt 0:00:00]} 11. c3 {[%emt 0:00:00]} Ne7 {[%emt 0:00:00]} 12. Nc2 {[%emt 0:03:16]} Nxd5 {[%emt 0:00:00]} 13. Qxd5 {[%emt 0:03:00]} Rb8 {[%emt 0:00:00]} 14. Rd1 {[%emt 0:10:17]} Bb7 {[%emt 0:11:50]} 15. Qxd6 {[%emt 0:09:09]} Qxd6 {[%emt 0:01:03]} 16. Rxd6 {[%emt 0:00:07]} Ke7 {[%emt 0:06:42]} 17. Rd1 {[%emt 0:02:21]} Bxe4 {[%emt 0:01:16]} 18. Nb4 {[%emt 0:04:56]} Bb7 {[%emt 0:12:13]} 19. Nd5+ {[%emt 0:13:45]} Bxd5 {[%emt 0:10:23]} 20. Rxd5 {[%emt 0:00:09]} Rhd8 {[%emt 0:07:37]} 21. Rd3 {[%emt 0:02:03]} Bg5 {[%emt 0:03:57]} 22. f3 {[%emt 0:08:57]} f5 {[%emt 0:03:30]} 23. g3 {[%emt 0:02:41]} e4 {[%emt 0:04:50]} 24. Rxd8 {[%emt 0:00:42]} Rxd8 {[%emt 0:00:18]} 25. f4 {[%emt 0:00:19]} Bf6 {[%emt 0:00:15]} 26. Bh3 {[%emt 0:01:37]} g6 {[%emt 0:00:44]} 27. Ke2 {[%emt 0:06:29]} Ke6 {[%emt 0:07:05]} 28. Rd1 {[%emt 0:04:41]} Rxd1 {[%emt 0:03:13]} 29. Kxd1 {[%emt 0:00:07]} g5 {[%emt 0:00:37]} 30. Kd2 {[%emt 0:05:22]} Bd8 {[%emt 0:03:38]} 31. Bf1 {[%emt 0:08:45]} gxf4 {[%emt 0:02:46]} 32. gxf4 {[%emt 0:00:12]} Bc7 {[%emt 0:00:21]} 33. Ke3 {[%emt 0:00:17]} Bb6+ {[%emt 0:00:46]} 34. Kd2 {[%emt 0:00:37]} Bc7 {[%emt 0:00:26]} 35. Ke3 {[%emt 0:00:22]} Bb6+ {[%emt 0:00:40]} 36. Kd2 {[%emt 0:00:09]} Bc7 {[%emt 0:02:10]} 37. Ke3 {[%emt 0:00:08]} Bb6+ {[%emt 0:07:24]} 1/2-1/2

[Event "Fagernes Open 2021"]
[Site "Fagernes"]
[Date "2021.10.15"]
[Round "7.7"]
[White "Cross, Jamie"]
[Black "Bronmo, Askild Skovgaard"]
[Result "0-1"]
[ECO "B22"]
[WhiteElo "1761"]
[BlackElo "1637"]
[Annotator "NA"]
[PlyCount "54"]
[EventDate "2021.10.10"]
[EventCountry "NOR"]
[SourceTitle "playchess.com"]
[Source "ChessBase"]
[SourceQuality "1"]
[TimeControl "40/5400+30:1800+30"]

1. e4 {[%emt 0:00:00]} c5 {[%emt 0:00:00]} 2. c3 {[%emt 0:00:00]} d5 {[%emt 0:00:00]} 3. exd5 {[%emt 0:00:00]} Qxd5 {[%emt 0:00:00]} 4. d4 {[%emt 0:00:00]} cxd4 {[%emt 0:00:00]} 5. cxd4 {[%emt 0:00:00]} Nc6 {[%emt 0:00:00]} 6. Nf3 {[%emt 0:00:00]} Bg4 {[%emt 0:00:00]} 7. Be2 {[%emt 0:00:00]} e6 {[%emt 0:00:00]} 8. O-O {[%emt 0:00:00]} Nf6 {[%emt 0:02:53]} 9. h3 {[%emt 0:00:00]} Bh5 {[%emt 0:02:24]} 10. Nc3 {[%emt 0:00:00]} Qd8 {[%emt 0:01:55]} 11. Qa4 {[%emt 0:07:36]} Be7 {[%emt 0:04:20]} 12. Rd1 {[%emt 0:09:52]} O-O {[%emt 0:02:32]} 13. Ne5 {[%emt 0:10:45]} Bxe2 {[%emt 0:07:43]} 14. Nxe2 {[%emt 0:01:15]} Nb4 {[%emt 0:02:11]} 15. Bd2 {[%emt 0:06:38]} Nbd5 {[%emt 0:01:15]} 16. Rac1 {[%emt 0:00:48]} Nb6 {[%emt 0:13:15]} 17. Qc2 {[%emt 0:04:01]} Rc8 {[%emt 0:01:09]} 18. Qd3 {[%emt 0:01:16]} Rxc1 {[%emt 0:06:14]} 19. Rxc1 {[%emt 0:00:49]} Nfd7 {[%emt 0:00:26]} 20. Nf3 {[%emt 0:00:25]} Bf6 {[%emt 0:01:33]} 21. Ba5 {[%emt 0:00:41]} Qb8 {[%emt 0:02:00]} 22. Nc3 {[%emt 0:05:03]} Rc8 {[%emt 0:00:58]} 23. Rd1 {[%emt 0:00:46]} Nc4 {[%emt 0:00:23]} 24. Ne5 {[%emt 0:13:04]} Ndxe5 {[%emt 0:09:09]} 25. dxe5 {[%emt 0:00:27]} Nxb2 {[%emt 0:02:15]} 26. Qd7 {[%emt 0:01:50]} Nxd1 {[%emt 0:00:00]} 27. Nxd1 {[%emt 0:00:38]} Bxe5 {[%emt 0:00:00]} 0-1

[Event "Fagernes Open 2021"]
[Site "Fagernes"]
[Date "2021.10.15"]
[Round "7.8"]
[White "Haugen, Lars Tormod"]
[Black "Skigelstrand, Live Jorgensen"]
[Result "0-1"]
[ECO "A28"]
[WhiteElo "1756"]
[BlackElo "1649"]
[Annotator "NA"]
[PlyCount "82"]
[EventDate "2021.10.10"]
[EventCountry "NOR"]
[SourceTitle "playchess.com"]
[Source "ChessBase"]
[SourceQuality "1"]
[TimeControl "40/5400+30:1800+30"]

1. c4 {[%emt 0:00:00]} e5 {[%emt 0:00:00]} 2. Nc3 {[%emt 0:00:00]} Nf6 {[%emt 0:00:00]} 3. Nf3 {[%emt 0:00:00]} Nc6 {[%emt 0:00:00]} 4. a3 {[%emt 0:00:00]} e4 {[%emt 0:00:00]} 5. Ng5 {[%emt 0:00:00]} Qe7 {[%emt 0:00:00]} 6. f3 {[%emt 0:00:54]} exf3 {[%emt 0:00:00]} 7. Nxf3 {[%emt 0:00:41]} g6 {[%emt 0:00:00]} 8. e3 {[%emt 0:03:35]} Bg7 {[%emt 0:00:00]} 9. Be2 {[%emt 0:00:43]} d6 {[%emt 0:04:10]} 10. O-O {[%emt 0:04:21]} O-O {[%emt 0:06:46]} 11. Rb1 {[%emt 0:10:57]} a5 {[%emt 0:10:14]} 12. Qe1 {[%emt 0:14:22]} Ne5 {[%emt 0:19:26]} 13. Qh4 {[%emt 0:29:49]} Nxf3+ {[%emt 0:09:38]} 14. Bxf3 {[%emt 0:00:30]} Nd5 {[%emt 0:04:05]} 15. Qxe7 {[%emt 0:09:10]} Nxe7 {[%emt 0:00:01]} 16. Nb5 {[%emt 0:00:45]} Bf5 {[%emt 0:03:42]} 17. e4 {[%emt 0:03:16]} Be6 {[%emt 0:01:51]} 18. d3 {[%emt 0:00:16]} Rac8 {[%emt 0:01:20]} 19. Be3 {[%emt 0:01:54]} Nc6 {[%emt 0:00:26]} 20. Be2 {[%emt 0:02:03]} Ne5 {[%emt 0:01:13]} 21. b3 {[%emt 0:01:09]} f5 {[%emt 0:01:26]} 22. d4 {[%emt 0:00:44]} Nf7 {[%emt 0:00:02]} 23. Bd3 {[%emt 0:01:30]} fxe4 {[%emt 0:01:21]} 24. Bxe4 {[%emt 0:00:14]} c6 {[%emt 0:00:02]} 25. Nc3 {[%emt 0:08:55]} Rfd8 {[%emt 0:10:51]} 26. Bf3 {[%emt 0:00:47]} Bf5 {[%emt 0:01:47]} 27. Rbc1 {[%emt 0:00:41]} Re8 {[%emt 0:00:15]} 28. Bf2 {[%emt 0:00:37]} Bh6 {[%emt 0:00:36]} 29. Rce1 {[%emt 0:01:33]} Bd2 {[%emt 0:02:22]} 30. Ne4 {[%emt 0:01:11]} Bxe1 {[%emt 0:00:37]} 31. Rxe1 {[%emt 0:01:42]} Bxe4 {[%emt 0:00:38]} 32. Rxe4 {[%emt 0:00:44]} Rxe4 {[%emt 0:00:09]} 33. Bxe4 {[%emt 0:00:06]} Ng5 {[%emt 0:00:22]} 34. Bd3 {[%emt 0:00:24]} d5 {[%emt 0:00:26]} 35. c5 {[%emt 0:02:12]} Re8 {[%emt 0:00:49]} 36. Kf1 {[%emt 0:00:20]} Ne4 {[%emt 0:00:13]} 37. Be1 {[%emt 0:00:09]} Ra8 {[%emt 0:01:21]} 38. a4 {[%emt 0:00:43]} Kf7 {[%emt 0:00:48]} 39. g4 {[%emt 0:01:08]} Ng5 {[%emt 0:01:45]} 40. Kf2 {[%emt 0:00:55]} Ne6 {[%emt 0:01:51]} 41. Ke3 {[%emt 0:00:00]} Re8 {[%emt 0:00:00]} 0-1

[Event "Fagernes Open 2021"]
[Site "Fagernes"]
[Date "2021.10.15"]
[Round "7.9"]
[White "Lystad, Maximilian L"]
[Black "Edvardsen, Ragnar"]
[Result "1/2-1/2"]
[ECO "A29"]
[WhiteElo "1767"]
[BlackElo "1865"]
[Annotator "NA"]
[PlyCount "98"]
[EventDate "2021.10.10"]
[EventCountry "NOR"]
[SourceTitle "playchess.com"]
[Source "ChessBase"]
[SourceQuality "1"]
[TimeControl "40/5400+30:1800+30"]

1. c4 {[%emt 0:00:00]} e5 {[%emt 0:00:00]} 2. g3 {[%emt 0:00:00]} Nf6 {[%emt 0:00:00]} 3. Bg2 {[%emt 0:00:00]} d5 {[%emt 0:00:00]} 4. cxd5 {[%emt 0:00:00]} Nxd5 {[%emt 0:00:00]} 5. Nc3 {[%emt 0:00:00]} Nb6 {[%emt 0:00:00]} 6. Nf3 {[%emt 0:00:00]} Nc6 {[%emt 0:00:00]} 7. O-O {[%emt 0:00:00]} Be7 {[%emt 0:00:00]} 8. a3 {[%emt 0:00:00]} O-O {[%emt 0:03:14]} 9. d3 {[%emt 0:00:00]} a5 {[%emt 0:03:41]} 10. Be3 {[%emt 0:07:24]} f5 {[%emt 0:05:53]} 11. Bxb6 {[%emt 0:10:38]} cxb6 {[%emt 0:01:07]} 12. Qb3+ {[%emt 0:00:19]} Kh8 {[%emt 0:00:18]} 13. Na4 {[%emt 0:00:31]} Ra6 {[%emt 0:01:56]} 14. Rac1 {[%emt 0:05:16]} Bf6 {[%emt 0:01:06]} 15. Nc3 {[%emt 0:01:43]} Re8 {[%emt 0:04:44]} 16. e4 {[%emt 0:05:53]} Be6 {[%emt 0:02:46]} 17. Qd1 {[%emt 0:01:55]} Qd7 {[%emt 0:02:40]} 18. exf5 {[%emt 0:13:44]} Bxf5 {[%emt 0:00:38]} 19. Ne4 {[%emt 0:00:05]} Rd8 {[%emt 0:00:56]} 20. Qa4 $11 {[%emt 0:03:39]} Raa8 {[%emt 0:04:15]} 21. Rfd1 {[%emt 0:06:51]} Bg4 {[%emt 0:13:41]} 22. Nxf6 {[%emt 0:04:07]} gxf6 {[%emt 0:00:23]} 23. h3 {[%emt 0:09:06]} Bxf3 {[%emt 0:03:16]} 24. Bxf3 {[%emt 0:02:38]} Nd4 {[%emt 0:01:24]} 25. Qxd7 {[%emt 0:00:07]} Rxd7 {[%emt 0:00:16]} 26. Bh5 {[%emt 0:00:43]} Kg7 {[%emt 0:01:10]} 27. Kg2 {[%emt 0:00:34]} Rad8 {[%emt 0:04:30]} 28. Rc3 {[%emt 0:03:43]} b5 {[%emt 0:08:32]} 29. Rdc1 {[%emt 0:09:43]} f5 {[%emt 0:02:19]} 30. Rc8 {[%emt 0:07:09]} Ne6 {[%emt 0:18:48]} 31. Be8 {[%emt 0:02:16]} Rxd3 {[%emt 0:04:43]} 32. Rxd8 {[%emt 0:02:05]} Rxd8 {[%emt 0:00:21]} 33. Bxb5 {[%emt 0:00:09]} Kf6 {[%emt 0:00:39]} 34. Rc2 {[%emt 0:02:56]} e4 {[%emt 0:02:19]} 35. Bc4 {[%emt 0:01:08]} Rc8 {[%emt 0:01:53]} 36. Bb3 {[%emt 0:00:09]} Rxc2 {[%emt 0:01:14]} 37. Bxc2 {[%emt 0:00:05]} Nd4 {[%emt 0:00:38]} 38. Bd1 {[%emt 0:01:22]} b5 {[%emt 0:01:17]} 39. g4 {[%emt 0:01:00]} f4 {[%emt 0:00:30]} 40. h4 {[%emt 0:01:13]} h6 {[%emt 0:02:14]} 41. Kf1 {[%emt 0:30:31]} Ke5 {[%emt 0:32:01]} 42. Ke1 {[%emt 0:00:26]} f3 {[%emt 0:01:37]} 43. Kd2 {[%emt 0:00:52]} Kf4 {[%emt 0:00:23]} 44. g5 {[%emt 0:00:07]} hxg5 {[%emt 0:00:54]} 45. hxg5 {[%emt 0:00:06]} Nf5 {[%emt 0:00:00]} 46. g6 {[%emt 0:00:00]} Ke5 {[%emt 0:00:00]} 47. Kc3 {[%emt 0:00:00]} Kf6 {[%emt 0:00:00]} 48. Bc2 {[%emt 0:00:00]} Ke5 {[%emt 0:00:00]} 49. Bd1 {[%emt 0:00:00]} Kf6 {[%emt 0:00:00]} 1/2-1/2

[Event "Fagernes Open 2021"]
[Site "Fagernes"]
[Date "2021.10.15"]
[Round "7.10"]
[White "Johannessen, Theo N"]
[Black "Stokhaug, Jon Arne"]
[Result "0-1"]
[ECO "E18"]
[WhiteElo "1668"]
[BlackElo "1861"]
[Annotator "NA"]
[PlyCount "94"]
[EventDate "2021.10.10"]
[EventCountry "NOR"]
[SourceTitle "playchess.com"]
[Source "ChessBase"]
[SourceQuality "1"]
[TimeControl "40/5400+30:1800+30"]

1. d4 {[%emt 0:00:00]} Nf6 {[%emt 0:00:00]} 2. Nf3 {[%emt 0:00:00]} e6 {[%emt 0:00:00]} 3. c4 {[%emt 0:00:00]} b6 {[%emt 0:00:00]} 4. g3 {[%emt 0:00:00]} Bb7 {[%emt 0:00:00]} 5. Bg2 {[%emt 0:00:00]} Be7 {[%emt 0:00:00]} 6. O-O {[%emt 0:00:00]} O-O {[%emt 0:00:00]} 7. Nc3 {[%emt 0:00:00]} d5 {[%emt 0:00:00]} 8. cxd5 {[%emt 0:00:00]} exd5 {[%emt 0:00:00]} 9. Ne5 {[%emt 0:05:38]} c6 {[%emt 0:03:15]} 10. e4 {[%emt 0:04:51]} dxe4 {[%emt 0:04:47]} 11. Nxe4 {[%emt 0:00:18]} Nxe4 {[%emt 0:01:15]} 12. Bxe4 {[%emt 0:02:37]} Bf6 {[%emt 0:00:38]} 13. f4 {[%emt 0:02:59]} Qd6 {[%emt 0:02:44]} 14. Be3 {[%emt 0:04:17]} Na6 {[%emt 0:02:51]} 15. a3 {[%emt 0:14:55]} g6 {[%emt 0:05:07]} 16. Rc1 {[%emt 0:02:12]} Rac8 {[%emt 0:01:08]} 17. Qf3 {[%emt 0:02:13]} Nb8 {[%emt 0:04:02]} 18. Rc2 {[%emt 0:04:58]} Rc7 {[%emt 0:10:12]} 19. Rfc1 {[%emt 0:02:11]} Rfc8 {[%emt 0:01:12]} 20. b4 {[%emt 0:01:43]} a6 {[%emt 0:00:33]} 21. Nc4 {[%emt 0:05:24]} Qe6 {[%emt 0:01:37]} 22. Kg2 {[%emt 0:05:00]} Re8 {[%emt 0:00:46]} 23. Ne5 {[%emt 0:00:18]} Bxe5 {[%emt 0:00:51]} 24. dxe5 {[%emt 0:00:16]} b5 {[%emt 0:03:08]} 25. Rd1 {[%emt 0:03:46]} f5 {[%emt 0:07:06]} 26. Bd3 {[%emt 0:01:43]} c5 {[%emt 0:01:06]} 27. Bxc5 {[%emt 0:02:25]} Bxf3+ {[%emt 0:00:21]} 28. Kxf3 {[%emt 0:00:02]} Nd7 {[%emt 0:04:24]} 29. Bd6 {[%emt 0:00:49]} Rxc2 {[%emt 0:01:20]} 30. Bxc2 {[%emt 0:00:12]} Rc8 {[%emt 0:01:39]} 31. Bd3 {[%emt 0:00:42]} Qb3 {[%emt 0:00:23]} 32. Ke2 {[%emt 0:00:20]} Nb6 {[%emt 0:02:25]} 33. Bc5 {[%emt 0:00:14]} Nd5 {[%emt 0:01:05]} 34. Rd2 {[%emt 0:00:43]} Nc3+ {[%emt 0:01:05]} 35. Kf1 {[%emt 0:00:54]} Qd5 {[%emt 0:02:06]} 36. Kg1 {[%emt 0:02:16]} Ne4 {[%emt 0:02:38]} 37. Rd1 {[%emt 0:00:39]} Nxc5 {[%emt 0:00:18]} 38. bxc5 {[%emt 0:00:54]} Rxc5 {[%emt 0:00:31]} 39. Kf2 {[%emt 0:00:24]} Qa2+ {[%emt 0:00:40]} 40. Be2 {[%emt 0:00:19]} Rd5 {[%emt 0:00:34]} 41. Rc1 {[%emt 0:30:18]} Rd2 {[%emt 0:30:14]} 42. Rc8+ {[%emt 0:00:11]} Kg7 {[%emt 0:00:10]} 43. Rc7+ {[%emt 0:00:08]} Kh6 {[%emt 0:00:09]} 44. g4 {[%emt 0:00:15]} Rxe2+ {[%emt 0:00:05]} 45. Kg3 {[%emt 0:00:07]} Qb3+ {[%emt 0:00:24]} 46. Rc3 {[%emt 0:00:09]} Qxc3+ {[%emt 0:00:05]} 47. Kh4 {[%emt 0:00:05]} Rxh2# {[%emt 0:00:06]} 0-1

[Event "Fagernes Open 2021"]
[Site "Fagernes"]
[Date "2021.10.15"]
[Round "7.11"]
[White "Amundsen, Ask"]
[Black "Galinsky, Misha"]
[Result "1-0"]
[ECO "C54"]
[WhiteElo "1816"]
[BlackElo "1756"]
[Annotator "NA"]
[PlyCount "55"]
[EventDate "2021.10.10"]
[EventCountry "NOR"]
[SourceTitle "playchess.com"]
[Source "ChessBase"]
[SourceQuality "1"]
[TimeControl "40/5400+30:1800+30"]

1. e4 {[%emt 0:00:00]} e5 {[%emt 0:00:00]} 2. Nf3 {[%emt 0:00:00]} Nc6 {[%emt 0:00:00]} 3. Bc4 {[%emt 0:00:00]} Bc5 {[%emt 0:00:00]} 4. c3 {[%emt 0:00:00]} d6 {[%emt 0:00:00]} 5. d3 {[%emt 0:00:00]} h6 {[%emt 0:00:00]} 6. O-O {[%emt 0:00:00]} Nf6 {[%emt 0:00:00]} 7. a4 {[%emt 0:00:00]} a6 {[%emt 0:01:50]} 8. Nbd2 {[%emt 0:00:00]} O-O {[%emt 0:01:38]} 9. Re1 {[%emt 0:01:08]} Bg4 {[%emt 0:01:42]} 10. Nf1 {[%emt 0:02:28]} Na5 {[%emt 0:05:44]} 11. Ba2 {[%emt 0:01:22]} Nc6 {[%emt 0:02:36]} 12. Ng3 {[%emt 0:03:08]} Qd7 {[%emt 0:11:10]} 13. h3 {[%emt 0:03:31]} Be6 {[%emt 0:00:07]} 14. Bb1 {[%emt 0:03:15]} Bb6 {[%emt 0:08:43]} 15. d4 {[%emt 0:01:56]} exd4 {[%emt 0:00:09]} 16. cxd4 {[%emt 0:00:22]} d5 {[%emt 0:01:34]} 17. e5 {[%emt 0:01:39]} Ne8 {[%emt 0:00:14]} 18. Bxh6 {[%emt 0:14:02]} gxh6 {[%emt 0:00:17]} 19. Qd2 {[%emt 0:00:15]} f5 {[%emt 0:21:35]} 20. exf6 {[%emt 0:01:18]} Rxf6 {[%emt 0:00:43]} 21. Nh5 {[%emt 0:17:09]} Rxf3 {[%emt 0:03:19]} 22. gxf3 {[%emt 0:00:33]} Nxd4 {[%emt 0:00:07]} 23. Qxh6 {[%emt 0:01:11]} Nxf3+ {[%emt 0:00:27]} 24. Kh1 {[%emt 0:01:38]} Nxe1 {[%emt 0:01:04]} 25. Bg6 {[%emt 0:05:05]} Bd4 {[%emt 0:16:44]} 26. Rxe1 {[%emt 0:03:05]} Bf5 {[%emt 0:07:25]} 27. Bxe8 {[%emt 0:07:58]} Rxe8 {[%emt 0:00:29]} 28. Rg1+ {[%emt 0:00:22]} 1-0

[Event "Fagernes Open 2021"]
[Site "Fagernes"]
[Date "2021.10.15"]
[Round "7.12"]
[White "Eriksen, Olai Dyrhaug"]
[Black "Carlin, Tormod"]
[Result "0-1"]
[ECO "D31"]
[WhiteElo "1809"]
[BlackElo "1554"]
[Annotator "NA"]
[PlyCount "58"]
[EventDate "2021.10.10"]
[EventCountry "NOR"]
[SourceTitle "playchess.com"]
[Source "ChessBase"]
[SourceQuality "1"]
[TimeControl "40/5400+30:1800+30"]

1. d4 {[%emt 0:00:00]} d5 {[%emt 0:00:00]} 2. c4 {[%emt 0:00:00]} c6 {[%emt 0:00:00]} 3. e3 {[%emt 0:00:00]} Nf6 {[%emt 0:00:00]} 4. Nc3 {[%emt 0:00:00]} e6 {[%emt 0:00:00]} 5. b3 {[%emt 0:00:00]} Bd6 {[%emt 0:00:00]} 6. Bd3 {[%emt 0:00:00]} Nbd7 {[%emt 0:00:00]} 7. Bb2 {[%emt 0:00:00]} O-O {[%emt 0:00:00]} 8. Nge2 {[%emt 0:00:00]} Re8 {[%emt 0:00:00]} 9. O-O {[%emt 0:00:00]} a6 {[%emt 0:00:00]} 10. Ng3 {[%emt 0:02:21]} b5 {[%emt 0:00:00]} 11. Qc2 {[%emt 0:15:30]} b4 {[%emt 0:14:59]} 12. Nce2 {[%emt 0:02:34]} e5 {[%emt 0:03:00]} 13. cxd5 {[%emt 0:09:19]} cxd5 {[%emt 0:00:50]} 14. dxe5 {[%emt 0:10:05]} Bxe5 {[%emt 0:00:32]} 15. Nd4 {[%emt 0:08:24]} Bb7 {[%emt 0:05:27]} 16. Rac1 {[%emt 0:06:39]} Rc8 {[%emt 0:02:08]} 17. Qd2 {[%emt 0:00:36]} Qb6 {[%emt 0:00:51]} 18. Bf5 {[%emt 0:02:29]} g6 {[%emt 0:04:07]} 19. Bh3 {[%emt 0:00:14]} Rxc1 {[%emt 0:08:20]} 20. Rxc1 {[%emt 0:00:25]} Nc5 {[%emt 0:00:51]} 21. Qc2 {[%emt 0:09:56]} Nfe4 {[%emt 0:06:31]} 22. Nxe4 {[%emt 0:00:51]} Nxe4 {[%emt 0:00:36]} 23. Ne2 {[%emt 0:09:20]} Nxf2 {[%emt 0:04:21]} 24. Kxf2 {[%emt 0:03:36]} Qf6+ {[%emt 0:02:50]} 25. Kg1 {[%emt 0:00:45]} Bxb2 {[%emt 0:00:45]} 26. Rb1 {[%emt 0:01:16]} Bc3 {[%emt 0:04:28]} 27. Nxc3 {[%emt 0:02:32]} bxc3 {[%emt 0:00:13]} 28. Qf2 {[%emt 0:00:44]} Qe5 {[%emt 0:00:48]} 29. Rf1 {[%emt 0:00:46]} Qxe3 {[%emt 0:00:16]} 0-1

[Event "Fagernes Open 2021"]
[Site "Fagernes"]
[Date "2021.10.15"]
[Round "7.13"]
[White "Hellesoy, David"]
[Black "Ostensen, Nicolai Maxime"]
[Result "0-1"]
[ECO "C77"]
[WhiteElo "1500"]
[BlackElo "1768"]
[Annotator "NA"]
[PlyCount "118"]
[EventDate "2021.10.10"]
[EventCountry "NOR"]
[SourceTitle "playchess.com"]
[Source "ChessBase"]
[SourceQuality "1"]
[TimeControl "40/5400+30:1800+30"]

1. e4 {[%emt 0:00:00]} e5 {[%emt 0:00:00]} 2. Nf3 {[%emt 0:00:00]} Nc6 {[%emt 0:00:00]} 3. Bb5 {[%emt 0:00:00]} d6 {[%emt 0:00:00]} 4. O-O {[%emt 0:03:38]} Be7 {[%emt 0:03:42]} 5. c3 {[%emt 0:00:00]} Nf6 {[%emt 0:00:00]} 6. d3 {[%emt 0:00:00]} O-O {[%emt 0:00:00]} 7. Nbd2 {[%emt 0:06:17]} a6 {[%emt 0:00:00]} 8. Ba4 {[%emt 0:00:58]} b5 {[%emt 0:00:00]} 9. Bb3 {[%emt 0:00:29]} Na5 {[%emt 0:00:00]} 10. Bc2 {[%emt 0:00:15]} h6 {[%emt 0:00:00]} 11. Re1 {[%emt 0:03:04]} Be6 {[%emt 0:00:00]} 12. Nf1 {[%emt 0:02:20]} Re8 {[%emt 0:00:00]} 13. Ng3 {[%emt 0:05:54]} c5 {[%emt 0:01:24]} 14. d4 {[%emt 0:01:48]} Bg4 {[%emt 0:04:09]} 15. h3 {[%emt 0:00:42]} Bxf3 {[%emt 0:00:28]} 16. Qxf3 {[%emt 0:00:27]} Nh7 {[%emt 0:09:02]} 17. Nf5 {[%emt 0:02:42]} Bg5 {[%emt 0:02:01]} 18. b3 {[%emt 0:07:05]} Bxc1 {[%emt 0:16:46]} 19. Raxc1 {[%emt 0:00:15]} Qf6 {[%emt 0:00:35]} 20. dxc5 {[%emt 0:05:15]} dxc5 {[%emt 0:00:19]} 21. Red1 {[%emt 0:01:46]} Rad8 {[%emt 0:05:04]} 22. Rd5 {[%emt 0:09:13]} Rxd5 {[%emt 0:01:55]} 23. exd5 {[%emt 0:00:40]} e4 {[%emt 0:02:44]} 24. Qg4 {[%emt 0:07:37]} h5 {[%emt 0:05:48]} 25. Qf4 {[%emt 0:05:10]} g5 {[%emt 0:03:37]} 26. Qc7 {[%emt 0:00:49]} Qxf5 {[%emt 0:01:01]} 27. Qxa5 {[%emt 0:00:51]} Qxd5 {[%emt 0:01:08]} 28. Rd1 {[%emt 0:06:00]} Qc6 {[%emt 0:01:39]} 29. c4 {[%emt 0:05:40]} Nf6 {[%emt 0:13:35]} 30. Rd8 {[%emt 0:03:26]} Rxd8 {[%emt 0:01:02]} 31. Qxd8+ {[%emt 0:00:32]} Kg7 {[%emt 0:00:35]} 32. Qe7 {[%emt 0:03:37]} bxc4 {[%emt 0:05:39]} 33. bxc4 {[%emt 0:02:11]} g4 {[%emt 0:05:34]} 34. hxg4 {[%emt 0:03:37]} hxg4 {[%emt 0:01:17]} 35. Qe5 {[%emt 0:01:04]} Kf8 {[%emt 0:05:30]} 36. Kh2 {[%emt 0:02:23]} Nd7 {[%emt 0:04:08]} 37. Qxe4 {[%emt 0:03:39]} Qxe4 {[%emt 0:00:33]} 38. Bxe4 {[%emt 0:00:31]} Ne5 {[%emt 0:00:09]} 39. Kg3 {[%emt 0:01:03]} Ke7 {[%emt 0:03:08]} 40. Kf4 {[%emt 0:06:01]} Kf6 {[%emt 0:02:24]} 41. Bd5 {[%emt 0:30:34]} Nd3+ {[%emt 0:30:40]} 42. Kxg4 {[%emt 0:00:00]} Nxf2+ {[%emt 0:00:00]} 43. Kf3 {[%emt 0:00:00]} Nd1 {[%emt 0:00:00]} 44. Bb7 {[%emt 0:00:00]} a5 {[%emt 0:00:00]} 45. Bc6 {[%emt 0:00:00]} Ke5 {[%emt 0:00:00]} 46. g4 {[%emt 0:00:00]} f6 {[%emt 0:00:00]} 47. Ba4 {[%emt 0:00:00]} Nb2 {[%emt 0:00:00]} 48. Bb5 {[%emt 0:00:00]} Nd1 {[%emt 0:00:00]} 49. Ke2 {[%emt 0:00:00]} Nc3+ {[%emt 0:00:00]} 50. Kd3 {[%emt 0:00:00]} Nxa2 {[%emt 0:00:00]} 51. Kc2 {[%emt 0:00:00]} Kd4 {[%emt 0:00:00]} 52. Kb3 {[%emt 0:00:00]} Nc3 {[%emt 0:00:00]} 53. Ka3 {[%emt 0:00:00]} Nxb5+ {[%emt 0:00:00]} 54. cxb5 {[%emt 0:00:00]} Kd5 {[%emt 0:00:00]} 55. Ka4 {[%emt 0:00:00]} c4 {[%emt 0:00:00]} 56. b6 {[%emt 0:00:44]} Kc6 {[%emt 0:00:00]} 57. Kxa5 {[%emt 0:01:48]} c3 {[%emt 0:00:00]} 58. Ka6 {[%emt 0:00:31]} c2 {[%emt 0:00:00]} 59. b7 {[%emt 0:02:57]} c1=Q {[%emt 0:00:00]} 0-1